bitfinex-derivatives/quotes_SOLF0:USTF0_20250206
["timestamp","ask_amount","ask_price","bid_price","bid_amount"]
[1738827666610,0.03735328,202.32,202.29,8.44555139]
[1738827672112,0.03735328,202.32,202.29,13.38715139]
[1738827673110,0.03735328,202.32,202.28,0.0366585]
[1738827673414,8.44555139,202.31,202.28,0.0366585]
[1738827675511,0.03735328,202.32,202.28,0.0366585]
[1738827676314,0.03735328,202.32,202.29,8.44555139]
[1738827679008,0.03735328,202.32,202.28,0.0366585]
[1738827680810,4.97825328,202.32,202.28,0.0366585]
[1738827681415,8.44555139,202.31,202.28,0.0366585]
[1738827681917,13.38675139,202.31,202.28,0.0366585]
[1738827685616,0.03735328,202.32,202.28,0.0366585]
[1738827686319,0.03735328,202.32,202.29,8.44555139]
[1738827686519,0.03735328,202.32,202.28,0.0366585]
[1738827691931,8.44555139,202.31,202.28,0.0366585]
[1738827693937,0.03735328,202.32,202.28,0.0366585]
[1738827696837,0.03735328,202.32,202.31,8.44555139]
[1738827698327,0.03735328,202.32,202.29,8.44555139]
[1738827702039,0.03735328,202.32,202.28,0.0366585]
[1738827702240,8.48290467,202.32,202.28,0.0366585]
[1738827703542,4.9411,202.31,202.28,0.0366585]
[1738827704535,8.44555139,202.3,202.28,0.0366585]
[1738827704734,24.85235139,202.3,202.17,8.44555139]
[1738827704936,8.44555139,202.23,202.15,11.49745139]
[1738827705139,8.44555139,202.23,202.15,13.39055139]
[1738827705440,8.44555139,202.23,202.15,8.44555139]
[1738827705633,8.44555139,202.19,202.13,8.44555139]
[1738827705937,8.44555139,202.19,202.11,8.44555139]
[1738827706143,8.44555139,202.17,202.11,8.44555139]
[1738827706439,8.44555139,202.13,202.08,101.23185833]
[1738827706837,8.47687032,202.13,202.08,101.23185833]
[1738827707139,0.03131893,202.13,202.08,101.23185833]
[1738827707936,0.03131893,202.13,202.07,8.44555139]
[1738827708743,0.03131893,202.13,202.06,4.9472]
[1738827709634,0.03131893,202.13,202.04,13.21760612]
[1738827710740,0.03131893,202.13,202.06,4.9472]
[1738827710936,0.03131893,202.13,202.04,13.21760612]
[1738827711443,0.03131893,202.13,202.07,4.9468]
[1738827712036,0.03131893,202.13,202.07,18.16440612]
[1738827713340,0.03131893,202.13,202.08,4.9467]
[1738827714151,0.03131893,202.13,202.07,13.21760612]
[1738827714546,0.03131893,202.13,202.04,13.21760612]
[1738827714744,13.21760612,202.17,202.04,13.21760612]
[1738827714950,0.03710123,202.11,202.04,13.21760612]
[1738827715746,0.03710123,202.11,202.05,4.9475]
[1738827716151,13.21760612,202.06,201.87,13.21760612]
[1738827716344,13.21760612,202.02,201.9,13.21760612]
[1738827716544,0.03438757,201.99,201.9,13.21760612]
[1738827716942,0.03438757,201.99,201.92,4.9506]
[1738827717251,0.03438757,201.99,201.9,13.21760612]
[1738827717649,4.98338757,201.99,201.9,13.21760612]
[1738827718647,0.03438757,201.99,201.9,13.21760612]
[1738827719751,4.98338757,201.99,201.92,4.9506]
[1738827720346,0.03438757,201.99,201.92,4.9506]
[1738827722249,0.03438757,201.99,201.9,13.21760612]
[1738827722449,0.03438757,201.99,201.95,4.9499]
[1738827722948,0.03438757,201.99,201.93,4.9503]
[1738827723153,0.03438757,201.99,201.9,13.21760612]
[1738827723351,13.25199369,201.99,201.87,13.21760612]
[1738827723744,13.21760612,201.99,201.87,13.21760612]
[1738827723949,0.03462935,201.95,201.87,13.21760612]
[1738827724346,0.03462935,201.95,201.84,13.21760612]
[1738827726153,0.03462935,201.95,201.87,4.9518]
[1738827726356,0.03462935,201.95,201.87,13.21760612]
[1738827727453,0.03462935,201.95,201.88,1.4615]
[1738827727651,0.03462935,201.95,201.91,4.9507]
[1738827728159,0.03462935,201.95,201.88,1.4615]
[1738827728751,0.03462935,201.95,201.91,4.9509]
[1738827729557,0.03462935,201.95,201.92,4.9506]
[1738827730153,0.03462935,201.95,201.9,13.21760612]
[1738827730752,0.03462935,201.95,201.93,4.9503]
[1738827731055,0.03462935,201.95,201.9,13.21760612]
[1738827731256,0.03462935,201.95,201.94,4.9502]
[1738827740759,0.03462935,201.95,201.94,13.41800148]
[1738827743464,2.935e-05,201.95,201.94,13.41800148]
[1738827743660,8.46780148,202.05,202.0,4.9486]
[1738827743866,8.46780148,202.07,202.0,13.41640148]
[1738827744063,4.9475,202.06,202.0,8.46780148]
[1738827744262,8.46780148,202.07,202.0,8.46780148]
[1738827744464,8.46780148,202.07,202.02,4.9481]
[1738827744863,8.50529193,202.07,202.02,4.98022074]
[1738827745864,8.50529193,202.07,202.02,0.03212074]
[1738827746060,0.03749045,202.07,202.02,8.49992222]
[1738827746561,0.03749045,202.07,202.03,4.9479]
[1738827746762,0.03749045,202.07,202.02,8.49992222]
[1738827747467,0.03749045,202.07,202.05,4.9475]
[1738827748767,0.03749045,202.07,202.02,8.49992222]
[1738827748957,0.03749045,202.07,202.06,4.9472]
[1738827749266,0.03749045,202.07,202.02,8.49992222]
[1738827749565,0.03749045,202.07,202.05,4.9475]
[1738827750563,0.03749045,202.07,202.06,4.9472]
[1738827750869,0.03749045,202.07,202.06,13.41500148]
[1738827753471,20.28348983,202.13,202.1,4.9463]
[1738827754566,54.08930622,202.14,202.1,4.9463]
[1738827754567,0.03432558,202.14,202.1,4.9463]
[1738827756867,0.03432558,202.14,202.11,4.946]
[1738827758271,0.03432558,202.14,202.12,4.9457]
[1738827758673,0.03432558,202.14,202.09,8.5001407]
[1738827760074,0.03432558,202.14,202.11,4.9459]
[1738827761777,0.03432558,202.14,202.09,8.5001407]
[1738827763078,0.03432558,202.14,202.1,4.946]
[1738827764476,8.46780148,202.25,202.19,4.944]
[1738827764665,8.46780148,202.25,202.16,8.46780148]
[1738827765273,21.74258983,202.28,202.11,1.5419]
[1738827765274,8.46780148,202.21,202.14,8.46780148]
[1738827765675,0.03355668,202.2,202.15,0.0368954]
[1738827765876,0.03355668,202.2,202.16,13.41260148]
[1738827766076,0.03355668,202.2,202.16,8.46780148]
[1738827766378,0.03355668,202.2,202.18,8.46780148]
[1738827767479,0.03355668,202.2,202.18,13.41190148]
[1738827767680,0.03355668,202.2,202.18,8.46780148]
[1738827768179,0.03355668,202.2,202.19,4.9441]
[1738827773983,0.03355668,202.2,202.18,4.9443]
[1738827774184,0.03355668,202.2,202.16,8.46780148]
[1738827775581,0.03355668,202.2,202.16,13.41260148]
[1738827776183,0.03355668,202.2,202.18,4.9443]
[1738827776383,0.03355668,202.2,202.16,8.46780148]
[1738827777284,0.03355668,202.2,202.19,4.9441]
[1738827787389,3.1229,202.3,202.18,8.46780148]
[1738827787589,3.1229,202.3,202.25,4.9425]
[1738827787990,3.1229,202.3,202.25,8.46780148]
[1738827788186,3.1229,202.3,202.26,4.9423]
[1738827788689,3.15775238,202.3,202.26,4.97458207]
[1738827789890,3.15775238,202.3,202.26,0.03228207]
[1738827790893,3.15775238,202.3,202.26,4.97458207]
[1738827791892,0.03485238,202.3,202.26,4.97458207]
[1738827792493,0.03485238,202.3,202.26,0.03228207]
[1738827793293,0.03485238,202.3,202.26,4.97458207]
[1738827796395,0.03485238,202.3,202.27,4.9421]
[1738827798399,0.03485238,202.3,202.26,4.97458207]
[1738827798698,0.03485238,202.3,202.27,8.46780148]
[1738827798993,0.03485238,202.3,202.29,13.40940148]
[1738827799295,0.03485238,202.3,202.27,8.46780148]
[1738827800598,0.03485238,202.3,202.27,13.40970148]
[1738827800798,0.03485238,202.3,202.27,8.46780148]
[1738827801798,0.03485238,202.3,202.28,4.9418]
[1738827808496,0.03485238,202.3,202.29,13.40940148]
[1738827812310,1.6098,202.39,202.35,8.46780148]
[1738827812612,1.6124,202.4,202.35,8.46780148]
[1738827813010,1.6124,202.4,202.35,13.40790148]
[1738827813414,1.65024859,202.4,202.35,13.44164119]
[1738827814014,1.65024859,202.4,202.35,8.50154119]
[1738827815508,8.46780148,202.39,202.35,0.03373971]
[1738827823826,13.40710148,202.39,202.35,0.03373971]
[1738827825925,8.46780148,202.39,202.35,0.03373971]
[1738827827228,13.40700148,202.39,202.35,0.03373971]
[1738827829030,8.46780148,202.37,202.35,0.03373971]
[1738827830728,13.40750148,202.37,202.35,0.03373971]
[1738827830923,8.46780148,202.37,202.35,0.03373971]
[1738827833732,13.40750148,202.37,202.35,0.03373971]
[1738827839535,8.46780148,202.37,202.35,0.03373971]
[1738827839838,4.9394,202.38,202.35,0.03373971]
[1738827841136,13.40750148,202.37,202.35,0.03373971]
[1738827842940,8.46780148,202.37,202.35,0.03373971]
[1738827843141,4.9399,202.36,202.35,0.03373971]
[1738827844934,8.46780148,202.37,202.35,0.03373971]
[1738827845135,4.9394,202.38,202.35,0.03373971]
[1738827845639,8.46780148,202.39,202.35,0.03373971]
[1738827845839,13.40700148,202.39,202.35,0.03373971]
[1738827849945,4.9395,202.38,202.35,0.03373971]
[1738827854446,4.9399,202.37,202.35,0.03373971]
[1738827854647,13.40770148,202.37,202.35,0.03373971]
[1738827859063,4.9399,202.36,202.35,0.03373971]
[1738827860864,8.46780148,202.37,202.35,0.03373971]
[1738827861164,13.40750148,202.37,202.35,0.03373971]
[1738827861555,8.46780148,202.37,202.35,0.03373971]
[1738827864567,13.40750148,202.37,202.35,0.03373971]
[1738827865162,4.9399,202.36,202.35,0.03373971]
[1738827868469,4.9406,202.33,202.26,4.9423]
[1738827868667,8.46780148,202.33,202.25,8.46780148]
[1738827868861,8.46780148,202.33,202.27,8.46780148]
[1738827869065,8.46780148,202.33,202.28,4.9419]
[1738827869264,13.40820148,202.35,202.28,4.9419]
[1738827869468,13.40820148,202.35,202.29,0.03386724]
[1738827869660,0.03530282,202.34,202.29,0.03386724]
[1738827872170,0.03530282,202.34,202.29,13.44316872]
[1738827874862,0.03530282,202.34,202.3,4.9413]
[1738827875066,0.03530282,202.34,202.29,8.50166872]
[1738827875666,0.03530282,202.34,202.31,4.9411]
[1738827876471,0.03530282,202.34,202.31,13.40890148]
[1738827876769,0.03530282,202.34,202.32,4.9409]
[1738827881574,0.03530282,202.34,202.33,4.9406]
[1738827882079,0.03530282,202.34,202.31,8.46780148]
[1738827882373,0.03530282,202.34,202.32,4.9408]
[1738827882770,0.03530282,202.34,202.31,4.9411]
[1738827882978,0.03530282,202.34,202.29,8.50166872]
[1738827884375,0.03530282,202.34,202.29,0.03386724]
[1738827884573,8.46780148,202.33,202.29,0.03386724]
[1738827889979,0.03530282,202.34,202.29,0.03386724]
[1738827890676,0.03530282,202.34,202.29,13.44306872]
[1738827891081,0.03530282,202.34,202.29,8.50166872]
[1738827892887,0.03530282,202.34,202.3,4.9414]
[1738827893785,0.03530282,202.34,202.29,4.97546724]
[1738827893984,8.46780148,202.33,202.29,0.03386724]
[1738827897991,13.40850148,202.33,202.29,0.03386724]
[1738827903596,8.46780148,202.31,202.29,0.03386724]
[1738827904597,4.9414,202.3,202.29,0.03386724]
[1738827904798,4.9414,202.3,202.21,9.95850148]
[1738827904998,8.46780148,202.27,202.21,9.95850148]
[1738827905301,8.46780148,202.27,202.22,4.9433]
[1738827905502,8.46780148,202.27,202.21,9.95850148]
[1738827906005,8.46780148,202.27,202.22,0.03522332]
[1738827906006,0.03800193,202.26,202.22,0.03522332]
[1738827907707,0.03800193,202.26,202.22,4.97842332]
[1738827908407,0.03800193,202.26,202.23,13.41080148]
[1738827908602,0.03800193,202.26,202.25,8.46780148]
[1738827909304,0.03800193,202.26,202.25,13.41040148]
[1738827915614,1.5388,202.35,202.32,4.9409]
[1738827917113,1.5388,202.35,202.31,8.50119359]
[1738827917314,1.5388,202.35,202.33,4.9406]
[1738827917813,0.03119153,202.36,202.33,4.9406]
[1738827918208,0.03119153,202.36,202.31,0.03339211]
[1738827918209,8.46780148,202.34,202.31,0.03339211]
[1738827918413,8.46780148,202.32,202.31,0.03339211]
[1738827918810,8.46780148,202.34,202.31,0.03339211]
[1738827921008,8.46780148,202.32,202.31,0.03339211]
[1738827921414,8.46780148,202.3,202.23,13.41070148]
[1738827922425,0.03681492,202.29,202.24,0.03526495]
[1738827922827,8.46780148,202.28,202.24,0.03526495]
[1738827923318,8.46780148,202.26,202.24,0.03526495]
[1738827924828,4.97841492,202.29,202.24,0.03526495]
[1738827924829,0.03681492,202.29,202.24,0.03526495]
[1738827925624,0.03681492,202.29,202.24,4.97806495]
[1738827927328,0.03681492,202.29,202.24,0.03526495]
[1738827931733,8.46780148,202.27,202.24,0.03526495]
[1738827932323,8.46780148,202.25,202.24,0.03526495]
[1738827933133,13.41040148,202.25,202.24,0.03526495]
[1738827934132,4.9429,202.24,202.15,8.46780148]
[1738827934329,0.03681492,202.29,202.15,8.46780148]
[1738827934330,8.46780148,202.22,202.15,8.46780148]
[1738827935232,8.46780148,202.2,202.13,8.46780148]
[1738827935435,8.46780148,202.2,202.16,0.03221327]
[1738827944631,0.03189531,202.21,202.19,8.46780148]
[1738827946833,0.03189531,202.21,202.2,4.9438]
[1738827949239,8.46780148,202.3,202.19,8.46780148]
[1738827949440,8.46780148,202.3,202.23,13.41060148]
[1738827949935,8.46780148,202.3,202.23,8.46780148]
[1738827950538,0.0364794,202.29,202.24,0.03236971]
[1738827950738,0.0364794,202.29,202.24,4.97506971]
[1738827952835,8.46780148,202.28,202.24,0.03236971]
[1738827956336,8.46780148,202.26,202.24,0.03236971]
[1738827958933,4.9426,202.25,202.24,0.03236971]
[1738827959133,8.46780148,202.26,202.15,8.46780148]
[1738827959441,8.46780148,202.21,202.15,8.46780148]
[1738827959739,8.46780148,202.21,202.16,4.9447]
[1738827960342,8.50386757,202.21,202.16,4.97889597]
[1738827961144,8.46780148,202.19,202.16,0.03419597]
[1738827962542,8.50386757,202.21,202.16,4.97879597]
[1738827963739,0.03606609,202.21,202.18,4.9442]
[1738827963945,0.03606609,202.21,202.17,8.46780148]
[1738827964445,0.03606609,202.21,202.16,0.03419597]
[1738827965141,0.03606609,202.21,202.16,4.97879597]
[1738827965740,0.03606609,202.21,202.16,0.03419597]
[1738827965946,0.03606609,202.21,202.18,4.9442]
[1738827966145,0.03606609,202.21,202.17,8.46780148]
[1738827966346,0.03606609,202.21,202.18,4.9443]
[1738827968546,0.03606609,202.21,202.19,4.9441]
[1738827968851,0.03606609,202.21,202.17,8.46780148]
[1738827969146,0.03606609,202.21,202.18,4.9443]
[1738827970149,0.03606609,202.21,202.19,4.944]
[1738827970345,0.03606609,202.21,202.19,8.46780148]
[1738827971346,0.03606609,202.21,202.2,4.9438]
[1738827972752,13.40940148,202.29,202.23,4.9429]
[1738827973048,13.40940148,202.29,202.12,1.4623]
[1738827973049,13.40940148,202.29,202.22,8.46780148]
[1738827973245,4.9419,202.28,202.22,8.46780148]
[1738827973449,8.46780148,202.27,202.2,8.46780148]
[1738827973851,0.0313405,202.26,202.21,0.03574856]
[1738827974350,0.0313405,202.26,202.22,4.9433]
[1738827977752,0.0313405,202.26,202.21,0.03574856]
[1738827977953,0.0313405,202.26,202.23,4.943]
[1738827979551,0.0313405,202.26,202.22,8.46780148]
[1738827980147,0.0313405,202.26,202.24,4.9426]
[1738827987254,0.0313405,202.26,202.25,4.9426]
[1738827992060,8.46780148,202.35,202.24,8.46780148]
[1738827992255,4.9404,202.34,202.3,4.9413]
[1738827992457,8.46780148,202.35,202.3,4.9413]
[1738827993361,8.50352963,202.35,202.3,4.97633357]
[1738827994565,0.03572815,202.35,202.32,4.9407]
[1738827994959,0.03572815,202.35,202.33,8.46780148]
[1738827995262,0.03572815,202.35,202.34,4.9404]
[1738827996562,20.28348983,202.4,202.38,13.40720148]
[1738827997867,0.03198858,202.41,202.38,13.40720148]
[1738827999169,0.03198858,202.41,202.37,0.03764577]
[1738827999367,8.49979006,202.41,202.37,0.03764577]
[1738827999771,8.46780148,202.39,202.37,0.03764577]
[1738828000767,4.9397,202.37,202.3,13.40910148]
[1738828000967,8.46780148,202.32,202.25,8.46780148]
[1738828001165,13.40870148,202.32,202.25,8.46780148]
[1738828001462,8.46780148,202.32,202.25,8.46780148]
[1738828001865,0.03553639,202.31,202.26,0.03292883]
[1738828002565,0.03553639,202.31,202.27,4.9421]
[1738828002761,0.03553639,202.31,202.26,0.03292883]
[1738828003059,0.03553639,202.31,202.27,8.46780148]
[1738828005672,0.03553639,202.31,202.28,4.9417]
[1738828006970,0.03553639,202.31,202.29,8.46780148]
[1738828008070,0.03553639,202.31,202.27,8.46780148]
[1738828009674,0.03553639,202.31,202.28,4.9418]
[1738828010971,0.03553639,202.31,202.29,4.9415]
[1738828016381,0.03553639,202.31,202.27,8.46780148]
[1738828016575,0.03553639,202.31,202.26,0.03292883]
[1738828022183,0.03553639,202.31,202.26,4.97532883]
[1738828022587,8.46780148,202.3,202.26,0.03292883]
[1738828023080,4.9418,202.29,202.26,0.03292883]
[1738828026487,13.40920148,202.3,202.26,0.03292883]
[1738828028289,8.46780148,202.3,202.26,0.03292883]
[1738828028485,0.03553639,202.31,202.27,8.46780148]
[1738828029889,0.03553639,202.31,202.28,4.9417]
[1738828032094,0.03553639,202.31,202.26,0.03292883]
[1738828032295,0.03553639,202.31,202.26,4.97502883]
[1738828032986,8.46780148,202.3,202.26,0.03292883]
[1738828033689,4.9417,202.29,202.26,0.03292883]
[1738828033895,8.46780148,202.3,202.26,0.03292883]
[1738828034389,0.03553639,202.31,202.26,0.03292883]
[1738828034590,8.46780148,202.28,202.26,0.03292883]
[1738828035794,13.40970148,202.28,202.26,0.03292883]
[1738828035990,8.46780148,202.28,202.26,0.03292883]
[1738828036195,8.46780148,202.28,202.19,13.41190148]
[1738828036499,8.46780148,202.26,202.19,13.41190148]
[1738828037095,8.46780148,202.28,202.19,8.46780148]
[1738828037289,0.03250538,202.25,202.21,8.46780148]
[1738828037892,0.03250538,202.25,202.21,13.41140148]
[1738828039193,0.03250538,202.25,202.21,8.46780148]
[1738828043101,0.03250538,202.25,202.21,13.41140148]
[1738828044202,0.03250538,202.25,202.21,4.9436]
[1738828044405,13.41060148,202.24,202.2,0.03714814]
[1738828046104,0.03250538,202.25,202.21,4.9435]
[1738828046307,0.03250538,202.25,202.21,8.46780148]
[1738828046506,0.03250538,202.25,202.23,8.46780148]
[1738828047804,0.03250538,202.25,202.23,13.41080148]
[1738828048600,0.03250538,202.25,202.24,4.9428]
[1738828049506,0.03250538,202.25,202.23,13.41090148]
[1738828050606,0.03250538,202.25,202.23,8.46780148]
[1738828050905,0.03250538,202.25,202.24,4.9428]
[1738828056312,0.03250538,202.25,202.23,8.46780148]
[1738828056512,0.03250538,202.25,202.23,13.41080148]
[1738828058307,0.03250538,202.25,202.24,4.9428]
[1738828082219,0.03250538,202.25,202.23,8.46780148]
[1738828082425,0.03250538,202.25,202.22,4.9432]
[1738828085524,0.03250538,202.25,202.24,4.9428]
[1738828086725,0.03250538,202.25,202.21,8.46780148]
[1738828086921,8.46780148,202.23,202.2,0.03714814]
[1738828089426,8.46780148,202.21,202.2,0.03714814]
[1738828090426,8.46780148,202.23,202.2,0.03714814]
[1738828091230,8.46780148,202.23,202.2,4.98094814]
[1738828092433,8.46780148,202.23,202.2,0.03714814]
[1738828096132,8.50030686,202.25,202.2,4.98094814]
[1738828096330,8.50030686,202.25,202.2,0.03714814]
[1738828099839,8.50030686,202.25,202.2,4.98094814]
[1738828103443,8.50030686,202.25,202.2,0.03714814]
[1738828104138,8.46780148,202.23,202.2,0.03714814]
[1738828104540,8.46780148,202.21,202.2,0.03714814]
[1738828104840,13.41140148,202.21,202.12,8.46780148]
[1738828105040,8.46780148,202.19,202.12,8.46780148]
[1738828105541,8.46780148,202.19,202.14,4.9451]
[1738828105741,0.03134768,202.19,202.14,8.50222096]
[1738828105944,0.03134768,202.19,202.16,8.46780148]
[1738828106242,0.03134768,202.19,202.17,4.9446]
[1738828107840,0.03134768,202.19,202.16,8.46780148]
[1738828108039,0.03134768,202.19,202.18,13.41210148]
[1738828109135,4.768e-05,202.19,202.18,13.41210148]
[1738828116148,4.768e-05,202.19,202.18,4.9443]
[1738828120349,4.768e-05,202.19,202.18,13.41210148]
[1738828123649,20.28348983,202.28,202.26,4.9422]
[1738828123853,20.28348983,202.28,202.24,8.46780148]
[1738828124554,20.28348983,202.28,202.26,8.46780148]
[1738828124758,20.3156225,202.28,202.26,8.46780148]
[1738828125645,20.3156225,202.28,202.27,4.9421]
[1738828125851,0.03213267,202.28,202.27,4.9421]
[1738828127859,3.267e-05,202.28,202.27,4.9421]
[1738828141063,3.267e-05,202.28,202.26,4.9423]
[1738828141765,3.267e-05,202.28,202.27,4.9421]
[1738828150363,3.267e-05,202.28,202.26,13.41010148]
[1738828150669,3.267e-05,202.28,202.24,8.50506235]
[1738828151068,3.267e-05,202.28,202.24,0.03726087]
[1738828151272,8.46783415,202.28,202.24,0.03726087]
[1738828153880,13.40983415,202.28,202.24,0.03726087]
[1738828154079,8.46780148,202.26,202.2,8.46780148]
[1738828154272,8.46780148,202.26,202.18,8.46780148]
[1738828155086,8.46780148,202.28,202.2,8.46780148]
[1738828155276,0.03508391,202.24,202.2,8.50264648]
[1738828155781,0.03508391,202.24,202.2,13.44624648]
[1738828156284,0.03508391,202.24,202.2,8.50264648]
[1738828156485,0.03508391,202.24,202.21,4.9435]
[1738828157287,0.03508391,202.24,202.2,0.034845]
[1738828157583,8.50288539,202.24,202.2,0.034845]
[1738828159490,8.50288539,202.24,202.18,13.41210148]
[1738828159683,1.4608,202.23,202.18,13.41210148]
[1738828160689,1.4608,202.23,202.18,13.44576736]
[1738828161887,8.46780148,202.22,202.18,0.03366588]
[1738828162092,10.00550148,202.22,202.18,0.03366588]
[1738828162889,14.94880148,202.22,202.18,0.03366588]
[1738828163593,10.00550148,202.22,202.18,0.03366588]
[1738828165586,10.00550148,202.22,202.18,4.97796588]
[1738828165993,10.00550148,202.22,202.18,0.03366588]
[1738828166298,1.5377,202.22,202.19,4.944]
[1738828168495,1.5377,202.22,202.18,13.44556736]
[1738828170389,10.00550148,202.22,202.18,0.03366588]
[1738828170596,13.41170148,202.2,202.13,4.9455]
[1738828171798,0.03178491,202.19,202.14,0.03690874]
[1738828171997,0.03178491,202.19,202.15,4.945]
[1738828172197,0.03178491,202.19,202.14,8.50471022]
[1738828172599,0.03178491,202.19,202.16,4.9447]
[1738828174503,0.03178491,202.19,202.14,0.03690874]
[1738828175889,0.03178491,202.19,202.14,4.98210874]
[1738828178000,0.03178491,202.19,202.16,4.9446]
[1738828178195,0.03178491,202.19,202.15,8.46780148]
[1738828178698,0.03178491,202.19,202.17,4.9445]
[1738828178998,0.03178491,202.19,202.15,8.46780148]
[1738828181803,0.03178491,202.19,202.16,4.9448]
[1738828184106,0.03178491,202.19,202.15,13.41260148]
[1738828185107,0.03178491,202.19,202.15,4.9448]
[1738828187807,0.03178491,202.19,202.14,4.98220874]
[1738828190008,0.03178491,202.19,202.15,8.46780148]
[1738828190410,0.03178491,202.19,202.17,8.46780148]
[1738828191310,0.03178491,202.19,202.18,4.9443]
[1738828195216,0.03178491,202.19,202.17,8.46780148]
[1738828195413,0.03178491,202.19,202.16,4.9446]
[1738828195714,0.03178491,202.19,202.15,8.46780148]
[1738828195912,8.46780148,202.17,202.14,0.03690874]
[1738828196916,13.41240148,202.17,202.14,0.03690874]
[1738828197116,8.46780148,202.17,202.14,0.03690874]
[1738828198214,14.87178491,202.19,202.14,0.03690874]
[1738828198215,8.46780148,202.15,202.14,0.03690874]
[1738828199518,4.9453,202.14,202.07,4.947]
[1738828199816,4.9453,202.14,202.04,3.1251]
[1738828199817,8.46780148,202.12,202.04,10.08410148]
[1738828200517,8.46780148,202.12,202.04,8.46780148]
[1738828200712,0.03188607,202.1,202.04,8.46780148]
[1738828200909,0.03188607,202.1,202.04,13.41540148]
[1738828201419,8.49968755,202.1,202.04,13.41540148]
[1738828202215,8.49968755,202.1,202.04,8.46780148]
[1738828202416,0.03188607,202.1,202.06,8.46780148]
[1738828203520,0.03188607,202.1,202.08,4.9467]
[1738828203716,0.03188607,202.1,202.06,8.46780148]
[1738828204315,0.03188607,202.1,202.05,4.9473]
[1738828204517,8.49968755,202.1,202.02,8.46780148]
[1738828204710,8.46780148,202.08,202.02,8.46780148]
[1738828204911,8.46780148,202.08,202.03,4.9479]
[1738828205311,8.46780148,202.08,202.0,1.5755]
[1738828205517,8.46780148,202.02,201.93,8.46780148]
[1738828205712,8.46780148,201.99,201.91,8.46780148]
[1738828205911,8.46780148,201.96,201.89,8.46780148]
[1738828206115,3.46,202.07,201.89,8.46780148]
[1738828206116,0.03686645,201.97,201.89,8.46780148]
[1738828206315,0.03686645,201.97,201.91,8.46780148]
[1738828206812,0.03686645,201.97,201.93,8.46780148]
[1738828208115,0.03686645,201.97,201.92,4.9504]
[1738828208421,0.03686645,201.97,201.91,8.46780148]
[1738828209220,0.03686645,201.97,201.91,13.41860148]
[1738828209613,0.03686645,201.97,201.93,8.46780148]
[1738828210619,0.03686645,201.97,201.95,8.46780148]
[1738828211920,0.03686645,201.97,201.95,13.41760148]
[1738828212115,8.46780148,202.04,201.95,8.46780148]
[1738828212315,8.46780148,202.04,201.98,8.46780148]
[1738828212516,8.46780148,202.04,201.96,8.46780148]
[1738828212921,8.46780148,202.04,201.97,4.9493]
[1738828213222,0.03402843,202.03,201.98,0.03686645]
[1738828214820,0.03402843,202.03,201.98,8.50466793]
[1738828215717,0.03402843,202.03,201.99,4.9489]
[1738828215923,0.03402843,202.03,201.98,8.50466793]
[1738828216822,0.03402843,202.03,202.0,4.9487]
[1738828217223,0.03402843,202.03,201.98,8.50466793]
[1738828217923,0.03402843,202.03,202.0,13.41650148]
[1738828218123,0.03402843,202.03,202.0,8.46780148]
[1738828219728,56.70551185,202.11,202.02,8.46780148]
[1738828219925,56.70551185,202.11,202.05,8.46780148]
[1738828220520,55.19131185,202.11,202.05,8.46780148]
[1738828220722,8.46780148,202.14,202.07,8.46780148]
[1738828220925,0.036207,202.1,202.07,8.46780148]
[1738828221723,0.036207,202.1,202.08,4.9465]
[1738828221932,0.036207,202.1,202.07,8.46780148]
[1738828222630,0.036207,202.1,202.08,4.9468]
[1738828223221,0.036207,202.1,202.07,8.46780148]
[1738828223525,0.036207,202.1,202.09,8.46780148]
[1738828223829,0.036207,202.1,202.09,13.41430148]
[1738828224731,13.41170148,202.2,202.13,4.9455]
[1738828225030,13.41170148,202.2,202.13,13.41330148]
[1738828225724,0.03494088,202.19,202.14,0.03732192]
[1738828226326,8.46780148,202.18,202.14,0.03732192]
[1738828226827,0.03494088,202.19,202.14,0.03732192]
[1738828228133,0.03494088,202.19,202.14,4.98262192]
[1738828228334,0.03494088,202.19,202.14,0.03732192]
[1738828230034,13.24684422,202.19,202.14,0.03732192]
[1738828230436,4.9448,202.17,202.14,0.03732192]
[1738828232942,13.24684422,202.19,202.14,0.03732192]
[1738828233138,13.21190334,202.16,202.02,13.21190334]
[1738828233643,13.21190334,202.16,202.02,14.79210334]
[1738828234244,0.03670066,202.11,202.07,0.03515417]
[1738828235445,4.9467,202.09,202.07,0.03515417]
[1738828235647,13.21190334,202.1,202.07,0.03515417]
[1738828235847,0.03670066,202.11,202.07,0.03515417]
[1738828236947,4.9463,202.1,202.07,0.03515417]
[1738828237143,0.03670066,202.11,202.07,0.03515417]
[1738828239447,4.98280066,202.11,202.07,0.03515417]
[1738828240047,4.9464,202.1,202.07,0.03515417]
[1738828241247,4.9468,202.08,202.07,0.03515417]
[1738828242241,4.9475,202.05,201.93,16.35290334]
[1738828242841,13.21190334,202.06,201.93,16.35290334]
[1738828243048,4.9472,202.07,201.93,16.35290334]
[1738828243244,0.03119886,202.02,201.97,0.03312457]